fUST/lending_fUST_20250826
["ID","MTS","AMOUNT","RATE_DAILY","PERIOD"]
[381447407,1756209038765,-35113.19,0.000362,14]
[381447408,1756209038774,-823.0,0.00036417,2]
[381447409,1756209038784,-150.521559,0.00036438,5]
[381447410,1756209038794,-3000.0,0.0003654,5]
[381447411,1756209038803,-161.0,0.00036541,120]
[381447412,1756209038813,-254.5430988,0.00036614,2]
[381447413,1756209038823,-604.0,0.00036884,120]
[381447414,1756209038841,-21817.1558995,0.0003689,3]
[381447415,1756209038851,-1087.83185425,0.0003689,3]
[381447416,1756209038862,-2917.61,0.000369,7]
[381447417,1756209038872,-2488.21088667,0.00037088,5]
[381447418,1756209038882,-150.521559,0.00037201,20]
[381447419,1756209038892,-1646.0,0.00037287,120]
[381447420,1756209038905,-1646.0,0.00037329,2]
[381447422,1756209038915,-168.0,0.00037496,2]
[381447423,1756209038924,-724.69002,0.00037526,120]
[381447424,1756209038933,-168.0,0.00037664,2]
[381447425,1756209038943,-150.521559,0.000378,2]
[381447426,1756209038952,-160.0,0.00037928,4]
[381447427,1756209038961,-502.88159123,0.00037994,5]
[381447428,1756209038971,-1254.93,0.00038,7]
[381447429,1756209038980,-168.0,0.00038111,120]
[381447430,1756209038990,-21817.1558995,0.0003819,3]
[381447431,1756209038999,-1087.83185425,0.0003819,3]
[381447432,1756209039008,-151.97768795,0.00038194,2]
[381447433,1756209039018,-286.53370678,0.00038194,2]
[381447434,1756209039027,-151.0,0.00038194,2]
[381447435,1756209039036,-198.22970686,0.00038194,2]
[381447436,1756209039046,-151.0,0.00038194,2]
[381447437,1756209039055,-500.0,0.00038194,2]
[381447438,1756209039069,-500.0,0.00038194,2]
[381447439,1756209039079,-151.0,0.00038194,2]
[381447440,1756209039088,-151.0,0.00038194,2]
[381447441,1756209039097,-158.31332455,0.00038194,2]
[381447442,1756209039107,-198.0,0.00038194,2]
[381447443,1756209039116,-151.0,0.00038194,2]
[381447444,1756209039126,-35113.19,0.000382,14]
[381447445,1756209039136,-168.0,0.00038242,2]
[381447446,1756209039147,-150.521559,0.00038264,5]
[381447447,1756209039157,-168.0,0.00038272,2]
[381447448,1756209039166,-301.93998937,0.00038356,120]
[381447449,1756209039174,-500.0,0.00038379,5]
[381447450,1756209039182,-500.0,0.00038379,5]
[381447451,1756209039191,-500.0,0.00038379,5]
[381447452,1756209039199,-168.0,0.00038381,7]
[381447453,1756209039207,-974.179,0.00038438,2]
[381447454,1756209039216,-2156.0,0.00038438,2]
[381447455,1756209039226,-638.0,0.00038438,2]
[381447456,1756209039235,-151.0,0.00038468,2]
[381447457,1756209039245,-219.51775221,0.00038468,2]
[381447458,1756209039254,-500.0,0.00038468,2]
[381447459,1756209039263,-500.0,0.00038468,2]
[381447460,1756209039273,-151.0,0.00038468,2]
[381447461,1756209039282,-151.0,0.00038468,2]
[381447462,1756209039291,-208.64253542,0.00038468,2]
[381447463,1756209039301,-168.0,0.00038552,2]
[381447464,1756209039310,-151.0,0.00038742,2]
[381447465,1756209039319,-500.0,0.00038742,2]
[381447466,1756209039329,-500.0,0.00038742,2]
[381447468,1756209039338,-198.9764294,0.00038742,2]
[381447470,1756209039348,-198.90793596,0.00038742,2]
[381447471,1756209039356,-9870.85808037,0.00038773,2]
[381447472,1756209039367,-168.0,0.00038791,2]
[381447473,1756209039376,-2917.61,0.000388,7]
[381447474,1756209039385,-376.39720582,0.00038825,2]
[381447475,1756209039395,-845.07960918,0.00038828,2]
[381447476,1756209039405,-217.18350301,0.00038828,2]
[381447477,1756209039414,-232.53539143,0.00038835,2]
[381447479,1756209039424,-43634.311799,0.0003884,3]
[381447480,1756209039433,-11966.1503968,0.0003884,3]
[381447481,1756209039443,-529.4218694,0.0003885,120]
[381447482,1756209039452,-500.0,0.00038873,5]
[381447483,1756209039461,-500.0,0.00038873,5]
[381447484,1756209039471,-500.0,0.00038873,5]
[381447485,1756209039479,-774720.53347309,0.00038875,120]
[381447486,1756209039490,-209182.70337968,0.00038875,120]
[381447515,1756209160103,216.13965704,0.000199,2]
[381447517,1756209240306,1964.62115727,0.00025205,2]
[381447520,1756209330845,201.85249187,0.000199,2]
[381447521,1756209330973,201.85249177,0.00024452,2]
[381447523,1756209504471,200.44754866,0.000199,2]
[381447524,1756209504810,200.4475485,0.00023029,2]
[381447525,1756209504864,200.4475485,0.00026159,4]
[381447526,1756209646657,272.89842399,0.00027984,2]
[381447527,1756209679401,203.55476067,0.000199,2]
[381447528,1756209679512,203.55476059,0.00022404,2]
[381447529,1756209679625,203.55476059,0.00024907,2]
[381447530,1756209679788,203.55476059,0.00027411,7]
[381447531,1756209784124,339.22385316,0.000253,2]
[381447532,1756209853602,208.25386145,0.000199,2]
[381447533,1756209853714,208.25386139,0.00022176,2]
[381447534,1756209853833,208.25386139,0.00024452,2]
[381447535,1756209853940,208.25386139,0.00026728,6]
[381447536,1756210029089,206.80145816,0.000199,2]
[381447537,1756210029174,206.801458,0.00021986,2]
[381447538,1756210029494,206.801458,0.00024073,2]
[381447539,1756210029605,206.801458,0.00026159,4]
[381447541,1756210218555,205.16849849,0.000199,2]
[381447542,1756210218655,205.16849827,0.00021903,2]
[381447543,1756210218770,205.16849827,0.00023906,2]
[381447544,1756210218920,205.16849827,0.00025908,4]
[381447545,1756210219030,205.16849827,0.00027911,8]
[381447547,1756210232077,-172.3145046,0.00028893,2]
[381447548,1756210232087,-909.37511762,0.00028895,98]
[381447549,1756210232097,-160.0,0.00028993,2]
[381447550,1756210232107,-300.0,0.00028994,2]
[381447551,1756210232117,-300.0,0.00028994,2]
[381447552,1756210232127,-1200.0,0.00028994,2]
[381447553,1756210232136,-300.0,0.00028994,2]
[381447554,1756210232145,-300.0,0.00028994,2]
[381447555,1756210232155,-1149.99486344,0.00029485,2]
[381447556,1756210232164,-11232.57438994,0.00029584,2]
[381447557,1756210232180,-38767.42561006,0.00029584,2]
[381447558,1756210232192,-380.82130462,0.00029584,2]
[381447560,1756210232204,-500.0,0.00029588,2]
[381447561,1756210232213,-362.34501,0.00029589,120]
[381447563,1756210232222,-500.0,0.000296,5]
[381447564,1756210232232,-205.16849827,0.00029914,13]
[381447565,1756210232241,-1000.0,0.0003,14]
[381447566,1756210232251,-500.0,0.00030148,5]
[381447567,1756210232261,-500.0,0.00030967,5]
[381447568,1756210232271,-420.0,0.00031281,2]
[381447569,1756210232281,-500.0,0.00031515,5]
[381447570,1756210232291,-845.07960918,0.00031597,2]
[381447571,1756210232300,-160.0,0.00031621,2]
[381447572,1756210232310,-160.0,0.00031621,2]
[381447573,1756210232319,-160.0,0.00031621,2]
[381447574,1756210232329,-160.0,0.00031621,2]
[381447575,1756210232338,-217.18350301,0.00031654,2]
[381447576,1756210232349,-232.53539143,0.00031654,2]
[381447577,1756210232358,-1149.99486342,0.00031677,2]
[381447578,1756210232367,-2000.0,0.00031913,49]
[381447579,1756210232377,-205.16849827,0.00031917,17]
[381447580,1756210232387,-909.37511758,0.00032742,115]
[381447581,1756210232396,-1030.65,0.000328,120]
[381447582,1756210232405,-180.27679622,0.00033358,10]
[381447583,1756210232415,-263.1961114,0.00033495,2]
[381447584,1756210232425,-478.63,0.00033678,10]
[381447585,1756210232434,-398.86,0.00033678,10]
[381447586,1756210232444,-332.38,0.00033678,10]
[381447587,1756210232454,-500.0,0.00033688,7]
[381447588,1756210232464,-180.58152591,0.00033688,7]
[381447589,1756210232475,-500.0,0.00033688,7]
[381447590,1756210232484,-500.0,0.00033688,7]
[381447591,1756210232494,-500.0,0.00033688,7]
[381447592,1756210232504,-500.0,0.00033688,7]
[381447593,1756210232513,-190.24793666,0.00033688,7]
[381447594,1756210232522,-24137.6258747,0.00033689,2]
[381447595,1756210232531,-20380.9060484,0.00033699,2]
[381447596,1756210232541,-1750.56,0.000337,7]
[381447597,1756210232550,-587.0,0.00033749,2]
[381447598,1756210232559,-1149.99486342,0.0003387,2]
[381447599,1756210232568,-5000.0,0.00033884,4]
[381447600,1756210232578,-205.16849827,0.0003392,21]
[381447601,1756210232587,-362.34501,0.00034521,120]
[381447602,1756210232597,-199.0,0.000349,120]
[381447603,1756210232607,-2000.0,0.00035,60]
[381447604,1756210232617,-302.35,0.00035,10]
[381447605,1756210232627,-205.16849827,0.00035922,25]
[381447606,1756210232637,-1149.99486342,0.00036062,2]
[381447607,1756210232646,-823.0,0.00036412,2]
[381447608,1756210232656,-909.37511758,0.00036589,120]
[381447609,1756210232665,-150.52156,0.00037351,20]
[381447610,1756210232675,-150.52156,0.00037469,2]
[381447611,1756210232685,-500.0,0.00037807,5]
[381447612,1756210232694,-500.0,0.00037807,5]
[381447613,1756210232704,-500.0,0.00037807,5]
[381447615,1756210232713,-974.0,0.00037884,2]
[381447616,1756210232722,-2156.0,0.00037884,2]
[381447618,1756210232732,-638.0,0.00037884,2]
[381447620,1756210232742,-386.362,0.00037884,2]
[381447622,1756210232752,-416.484,0.00037884,2]
[381447624,1756210232761,-205.16849827,0.00037925,30]
[381447626,1756210232770,-1750.56,0.000381,7]
[381447627,1756210232779,-1149.99486342,0.00038254,2]
[381447628,1756210232788,-500.0,0.00038355,5]
[381447629,1756210232797,-500.0,0.00038355,5]
[381447630,1756210232806,-500.0,0.00038355,5]
[381447631,1756210232816,-150.52156,0.00038595,5]
[381447632,1756210232825,-150.52156,0.000386,7]
[381447633,1756210232834,-154.53423691,0.00038742,2]
[381447634,1756210232843,-151.0,0.00038742,2]
[381447635,1756210232853,-198.0,0.00038742,2]
[381447636,1756210232862,-198.0,0.00038742,2]
[381447637,1756210232871,-198.0,0.00038742,2]
[381447638,1756210232880,-500.0,0.00038742,2]
[381447639,1756210232889,-316.34849336,0.00038746,2]
[381447640,1756210232898,-150.0,0.00038822,2]
[381447641,1756210232908,-218.5,0.00038822,2]
[381447642,1756210232917,-207.677,0.00038822,2]
[381447643,1756210232926,-222.323,0.00038822,2]
[381447644,1756210232935,-204.131,0.00038822,2]
[381447645,1756210232945,-257.299,0.00038822,2]
[381447646,1756210232955,-261.649,0.00038822,2]
[381447647,1756210232964,-220.354,0.00038822,2]
[381447648,1756210232973,-151.0,0.00038835,2]
[381447649,1756210232982,-232.53539143,0.00038836,3]
[381447650,1756210232992,-178.24959986,0.00038836,3]
[381447651,1756210233001,-216.09257821,0.00038836,3]
[381447652,1756210233011,-160.0,0.00038836,3]
[381447653,1756210233020,-24137.6258747,0.00038836,3]
[381447654,1756210233030,-27892.2603659,0.00038846,2]
[381447655,1756210233040,-509.0861977,0.00038846,2]
[381447656,1756210233050,-24137.6258747,0.00038865,3]
[381447657,1756210233059,-151.0,0.00038874,120]
[381447658,1756210233069,-156.587,0.00038874,120]
[381447659,1756210233078,-162.380719,0.00038874,120]
[381447660,1756210233088,-168.3888056,0.00038874,120]
[381447662,1756210233098,-174.61919141,0.00038874,120]
[381447664,1756210233107,-181.08010149,0.00038874,120]
[381447666,1756210233118,-187.78006525,0.00038874,120]
[381447668,1756210233128,-194.72792766,0.00038874,120]
[381447670,1756210233137,-250.0,0.00038874,120]
[381447671,1756210233147,-201.93286099,0.00038874,120]
[381447672,1756210233156,-250.0,0.00038874,120]
[381447673,1756210233166,-209.40437684,0.00038874,120]
[381447674,1756210233175,-200.02404106,0.00038874,120]
[381447675,1756210233185,-10497.71492616,0.00038875,120]
[381447676,1756210233200,-1077.32915382,0.00038875,120]
[381447691,1756210237944,-180.47641172,0.00029583,2]
[381447692,1756210237956,-500.0,0.00029583,2]
[381447693,1756210237967,-399.02412393,0.00029583,2]
[381447694,1756210237977,-500.0,0.00029583,2]
[381447695,1756210237988,-641.63454585,0.00029583,2]
[381447696,1756210237998,-500.0,0.00029583,2]
[381447697,1756210238009,-162.11732699,0.00029583,2]
[381447698,1756210238020,-500.0,0.00029583,2]
[381447699,1756210238030,-500.0,0.00029583,2]
[381447700,1756210238041,-500.0,0.00029583,2]
[381447701,1756210238051,-500.0,0.00029583,2]
[381447702,1756210238062,-500.0,0.00029583,2]
[381447703,1756210238073,-500.0,0.00029583,2]
[381447704,1756210238083,-500.0,0.00029583,2]
[381447705,1756210238094,-500.0,0.00029583,2]
[381447706,1756210238104,-500.0,0.00029583,2]
[381447707,1756210238115,-500.0,0.00029583,2]
[381447708,1756210238126,-500.0,0.00029583,2]
[381447709,1756210238136,-500.0,0.00029583,2]
[381447710,1756210238146,-500.0,0.00029583,2]
[381447711,1756210238155,-500.0,0.00029583,2]
[381447712,1756210238164,-500.0,0.00029583,2]
[381447713,1756210238173,-500.0,0.00029583,2]
[381447714,1756210238183,-500.0,0.00029583,2]
[381447715,1756210238194,-500.0,0.00029583,2]
[381447716,1756210238204,-500.0,0.00029583,2]
[381447717,1756210238214,-500.0,0.00029583,2]
[381447718,1756210238223,-500.0,0.00029583,2]
[381447719,1756210238232,-392.24266712,0.00029583,2]
[381447720,1756210238242,-500.0,0.00029583,2]
[381447721,1756210238252,-500.0,0.00029583,2]
[381447722,1756210238261,-500.0,0.00029583,2]
[381447723,1756210238272,-500.0,0.00029583,2]
[381447724,1756210238283,-645.5706225,0.00029583,2]
[381447725,1756210238292,-500.0,0.00029583,2]
[381447726,1756210238302,-500.0,0.00029583,2]
[381447732,1756210238665,-500.0,0.00029583,2]
[381447736,1756210238695,-551.5,0.00029583,2]
[381447737,1756210238714,-500.0,0.00029583,2]
[381447738,1756210238726,-500.0,0.00029583,2]
[381447739,1756210238736,-500.0,0.00029583,2]
[381447740,1756210238746,-500.0,0.00029583,2]
[381447741,1756210238756,-500.0,0.00029583,2]
[381447742,1756210238766,-500.0,0.00029583,2]
[381447743,1756210238775,-500.0,0.00029583,2]
[381447745,1756210238785,-500.0,0.00029583,2]
[381447747,1756210238795,-500.0,0.00029583,2]
[381447748,1756210238804,-500.0,0.00029583,2]
[381447749,1756210238813,-500.0,0.00029583,2]
[381447750,1756210238823,-500.0,0.00029583,2]
[381447751,1756210238832,-500.0,0.00029583,2]
[381447752,1756210238842,-500.0,0.00029583,2]
[381447754,1756210238851,-500.0,0.00029583,2]
[381447755,1756210238860,-500.0,0.00029583,2]
[381447756,1756210238869,-500.0,0.00029583,2]
[381447757,1756210238878,-500.0,0.00029583,2]
[381447758,1756210238887,-317.24846275,0.00035616,7]
[381447759,1756210238896,-199.0,0.00038775,120]
[381447760,1756210238905,-7969.07347584,0.00038875,120]
[381447761,1756210238914,-5956.49236844,0.0003889,2]
[381447762,1756210238923,-168.0,0.00038897,2]
[381447763,1756210238932,-1124.0,0.000389,2]
[381447764,1756210238941,-168.0,0.00038944,2]
[381447765,1756210238951,-24137.6258747,0.0003898,3]
[381447766,1756210238964,-168.0,0.00038989,2]
[381447767,1756210238973,-68146.64539721,0.0003899,120]
[381447768,1756210238982,-24137.6258747,0.0003899,3]
[381447769,1756210238991,-28394.51644943,0.00039,30]
[381447770,1756210239001,-8780.4090423,0.00039,14]
[381447771,1756210239013,-15798.8309577,0.00039,14]
[381447772,1756210239022,-878.45,0.00039,7]
[381447773,1756210239032,-232.53539143,0.00039,7]
[381447774,1756210239041,-160.0,0.00039,30]
[381447775,1756210239051,-198.0,0.00039016,2]
[381447776,1756210239060,-500.0,0.00039016,2]
[381447777,1756210239069,-168.0,0.00039045,2]
[381447778,1756210239079,-168.0,0.00039057,2]
[381447779,1756210239088,-168.0,0.0003907,2]
[381447780,1756210239097,-168.0,0.00039116,7]
[381447781,1756210239106,-500.0,0.00039158,5]
[381447782,1756210239115,-500.0,0.00039158,5]
[381447783,1756210239125,-500.0,0.00039158,5]
[381447784,1756210239134,-365.60859336,0.00039164,5]
[381447785,1756210239143,-500.0,0.00039164,5]
[381447786,1756210239152,-24137.6258747,0.0003917,3]
[381447787,1756210239162,-500.0,0.0003918,5]
[381447788,1756210239171,-500.0,0.0003918,5]
[381447789,1756210239180,-500.0,0.0003918,5]
[381447790,1756210239190,-480.05200003,0.0003922,2]
[381447791,1756210239204,-500.0,0.00039237,2]
[381447792,1756210239214,-316.34849333,0.00039247,2]
[381447793,1756210239223,-1152.0,0.00039285,5]
[381447794,1756210239232,-500.0,0.0003929,2]
[381447795,1756210239241,-168.0,0.00039299,7]
[381447796,1756210239250,-48275.2517494,0.00039343,3]
[381447797,1756210239260,-93124.95655524,0.00039353,2]
[381447798,1756210239271,-168.0,0.00039355,2]
[381447799,1756210239281,-500.0,0.00039373,5]
[381447800,1756210239290,-500.0,0.00039373,2]
[381447801,1756210239299,-500.0,0.00039373,5]
[381447802,1756210239309,-168.0,0.00039375,7]
[381447803,1756210239318,-16387.04376449,0.0003939,3]
[381447804,1756210239342,-31888.20798491,0.0003939,3]
[381447805,1756210239356,-56311.79201509,0.000394,120]
[381447816,1756210241854,-0.16803761,0.00039373,2]
[381447821,1756210243320,-500.0,0.00029583,2]
[381447822,1756210243330,-151.0,0.00039373,2]
[381447823,1756210243339,-27.49959941,0.000394,120]
[381447833,1756210312070,895.57308508,0.00027288,2]
[381447834,1756210312435,895.57308508,0.00027288,2]
[381447835,1756210393727,200.71249396,0.000199,2]
[381447836,1756210393830,200.71249382,0.00022682,2]
[381447837,1756210393977,200.71249382,0.00025463,3]
[381447839,1756210572601,200.19632508,0.000199,2]
[381447840,1756210572731,200.19632504,0.00022682,2]
[381447841,1756210572828,200.19632504,0.00025463,3]
[381447842,1756210630391,179.11461702,0.00027128,2]
[381447843,1756210633138,179.11461702,0.00027128,2]
[381447844,1756210739833,209.28789564,0.000199,2]
[381447845,1756210739967,209.28789564,0.00022682,2]
[381447846,1756210740067,209.28789564,0.00025463,3]
[381447847,1756210778218,-187.21318817,0.00028245,9]
[381447848,1756210780930,-22.07470747,0.00028245,9]
[381447849,1756210908446,200.0,0.00028,120]
[381447850,1756210914746,205.05078317,0.000199,2]
[381447851,1756210914844,205.05078317,0.00022535,2]
[381447852,1756210914940,205.05078317,0.00025171,2]
[381447853,1756210915055,205.05078317,0.00027806,8]
[381447856,1756211090400,202.12576063,0.000199,2]
[381447857,1756211090513,202.12576047,0.00022284,2]
[381447858,1756211090610,202.12576047,0.00024669,2]
[381447859,1756211090726,202.12576047,0.00027053,6]
[381447861,1756211267539,203.91482133,0.000199,2]
[381447862,1756211267643,203.91482118,0.00022176,2]
[381447863,1756211267771,203.91482118,0.00024452,2]
[381447864,1756211267940,203.91482118,0.00026728,6]
[381447869,1756211315788,165736.27677898,0.00031923,60]
[381447872,1756211324464,151.00000079,0.00031923,120]
[381447873,1756211326338,302.78466204,0.00021,2]
[381447874,1756211327507,152.53371585,0.00025,5]
[381447877,1756211338511,160.0,0.000282,7]
[381447878,1756211425092,3650.043342,0.00031923,120]
[381447885,1756211432393,-987.70184137,0.00028999,2]
[381447888,1756211433028,-212.29815863,0.00028999,2]
[381447889,1756211433037,-193.78787289,0.00029,2]
[381447890,1756211433049,-2750.0,0.00029,2]
[381447970,1756211438162,-3056.21212711,0.00029,2]
[381447971,1756211438172,-203.91482118,0.00029004,11]
[381447972,1756211438182,-203.91482118,0.0003128,15]
[381447973,1756211438192,-1680.0,0.00031421,3]
[381447974,1756211438201,-400.0,0.00031822,3]
[381447975,1756211438210,-400.0,0.00031822,3]
[381447976,1756211438220,-400.0,0.00031822,2]
[381447977,1756211438229,-400.0,0.00031822,3]
[381447978,1756211438238,-400.0,0.00031822,3]
[381447979,1756211438248,-3970.9949123,0.00031823,2]
[381447980,1756211438258,-2077.82614589,0.00031823,2]
[381447981,1756211438267,-434.17,0.00031874,10]
[381447982,1756211438277,-500.0,0.00031883,2]
[381447983,1756211438286,-188.85382643,0.00031883,2]
[381447984,1756211438295,-500.0,0.00031883,2]
[381447985,1756211438304,-500.0,0.00031883,2]
[381447986,1756211438313,-500.0,0.00031883,2]
[381447987,1756211438323,-598.73938679,0.00031883,2]
[381447988,1756211438332,-500.0,0.00031883,2]
[381447989,1756211438341,-500.0,0.00031883,2]
[381447990,1756211438351,-500.0,0.00031883,2]
[381447991,1756211438360,-500.0,0.00031883,2]
[381447992,1756211438370,-500.0,0.00031883,2]
[381447993,1756211438379,-500.0,0.00031883,2]
[381447994,1756211438389,-500.0,0.00031883,2]
[381447995,1756211438399,-500.0,0.00031883,2]
[381447996,1756211438408,-500.0,0.00031883,2]
[381447997,1756211438418,-500.0,0.00031883,2]
[381447998,1756211438427,-500.0,0.00031883,2]
[381447999,1756211438437,-500.0,0.00031883,2]
[381448000,1756211438446,-500.0,0.00031883,2]
[381448001,1756211438455,-500.0,0.00031883,2]
[381448002,1756211438464,-500.0,0.00031883,2]
[381448003,1756211438474,-500.0,0.00031883,2]
[381448004,1756211438484,-500.0,0.00031883,2]
[381448005,1756211438493,-500.0,0.00031883,2]
[381448006,1756211438503,-500.0,0.00031883,2]
[381448007,1756211438512,-619.88214132,0.00031883,2]
[381448008,1756211438521,-500.0,0.00031883,2]
[381448009,1756211438530,-500.0,0.00031883,2]
[381448010,1756211438540,-500.0,0.00031883,2]
[381448011,1756211438549,-500.0,0.00031883,2]
[381448012,1756211438559,-500.0,0.00031883,2]
[381448013,1756211438568,-500.0,0.00031883,2]
[381448014,1756211438580,-500.0,0.00031883,2]
[381448015,1756211438592,-500.0,0.00031883,2]
[381448016,1756211438601,-500.0,0.00031883,2]
[381448017,1756211438610,-500.0,0.00031883,2]
[381448018,1756211438619,-215.08789698,0.00031883,2]
[381448019,1756211438628,-500.0,0.00031883,2]
[381448020,1756211438637,-500.0,0.00031883,2]
[381448021,1756211438646,-500.0,0.00031883,2]
[381448022,1756211438658,-500.0,0.00031883,2]
[381448023,1756211438667,-500.0,0.00031883,2]
[381448024,1756211438677,-243.61458115,0.00031883,2]
[381448025,1756211438687,-500.0,0.00031883,2]
[381448026,1756211438696,-500.0,0.00031883,2]
[381448027,1756211438705,-500.0,0.00031883,2]
[381448028,1756211438714,-500.0,0.00031883,2]
[381448029,1756211438723,-500.0,0.00031883,2]
[381448030,1756211438732,-500.0,0.00031883,2]
[381448031,1756211438741,-500.0,0.00031883,2]
[381448032,1756211438752,-500.0,0.00031883,2]
[381448033,1756211438761,-500.0,0.00031883,2]
[381448034,1756211438771,-500.0,0.00031883,2]
[381448035,1756211438781,-380.69695727,0.00031883,2]
[381448036,1756211438791,-500.0,0.00031883,2]
[381448037,1756211438800,-500.0,0.00031883,2]
[381448038,1756211438810,-500.0,0.00031883,2]
[381448039,1756211438820,-500.0,0.00031883,2]
[381448040,1756211438829,-587.11541659,0.00031883,2]
[381448041,1756211438839,-500.0,0.00031883,2]
[381448042,1756211438849,-272.53243439,0.00031883,2]
[381448043,1756211438858,-500.0,0.00031883,2]
[381448044,1756211438868,-500.0,0.00031883,2]
[381448045,1756211438877,-500.0,0.00031883,2]
[381448046,1756211438887,-500.0,0.00031883,2]
[381448047,1756211438896,-500.0,0.00031883,2]
[381448048,1756211438905,-500.0,0.00031883,2]
[381448049,1756211438914,-500.0,0.00031883,2]
[381448050,1756211438924,-500.0,0.00031883,2]
[381448051,1756211438933,-500.0,0.00031883,2]
[381448052,1756211438942,-500.0,0.00031883,2]
[381448053,1756211438951,-583.47596229,0.00031883,2]
[381448054,1756211438960,-500.0,0.00031883,2]
[381448055,1756211438969,-500.0,0.00031883,2]
[381448056,1756211438978,-500.0,0.00031883,2]
[381448057,1756211438987,-500.0,0.00031883,2]
[381448058,1756211438996,-500.0,0.00031883,2]
[381448059,1756211439005,-500.0,0.00031883,2]
[381448060,1756211439014,-500.0,0.00031883,2]
[381448061,1756211439024,-500.0,0.00031883,2]
[381448062,1756211439033,-500.0,0.00031883,2]
[381448063,1756211439042,-500.0,0.00031883,2]
[381448064,1756211439051,-500.0,0.00031883,2]
[381448065,1756211439060,-500.0,0.00031883,2]
[381448066,1756211439069,-500.0,0.00031883,2]
[381448067,1756211439080,-500.0,0.00031883,2]
[381448068,1756211439089,-500.0,0.00031883,2]
[381448069,1756211439098,-377.15751522,0.00031883,2]
[381448070,1756211439108,-500.0,0.00031883,2]
[381448071,1756211439117,-500.0,0.00031883,2]
[381448072,1756211439126,-500.0,0.00031883,2]
[381448073,1756211439135,-500.0,0.00031883,2]
[381448074,1756211439144,-500.0,0.00031883,2]
[381448075,1756211439153,-500.0,0.00031883,2]
[381448076,1756211439162,-500.0,0.00031883,2]
[381448077,1756211439171,-500.0,0.00031883,2]
[381448078,1756211439181,-500.0,0.00031883,2]
[381448079,1756211439191,-500.0,0.00031883,2]
[381448080,1756211439199,-500.0,0.00031883,2]
[381448081,1756211439208,-500.0,0.00031883,2]
[381448082,1756211439218,-500.0,0.00031883,2]
[381448083,1756211439227,-500.0,0.00031883,2]
[381448084,1756211439236,-500.0,0.00031883,2]
[381448085,1756211439246,-93124.95655524,0.00031884,2]
[381448086,1756211439256,-431.2480738,0.00031886,2]
[381448087,1756211439265,-151.0,0.000319,19]
[381448088,1756211439274,-729.9,0.00031912,3]
[381448089,1756211439284,-364.95,0.00031912,3]
[381448090,1756211439293,-182.47,0.00031912,3]
[381448091,1756211439302,-547.46,0.00031912,3]
[381448092,1756211439311,-554.31,0.00031913,3]
[381448093,1756211439320,-692.88,0.00031913,3]
[381448094,1756211439329,-346.44,0.00031913,3]
[381448095,1756211439339,-311.8,0.00031913,3]
[381448096,1756211439348,-155.9,0.00031913,3]
[381448097,1756211439358,-467.74,0.00031913,3]
[381448098,1756211439367,-500.0,0.00031922,2]
[381448099,1756211439376,-1765.89697179,0.00031923,2]
[381448100,1756211439385,-1103929.05895945,0.00031923,20]
[381448101,1756211439395,-5980.15968823,0.00031923,7]
[381448102,1756211439405,-14999.99999901,0.00031923,2]
[381448103,1756211439414,-858.77630464,0.00031923,30]
[381448104,1756211439423,-49857.30073436,0.00031923,2]